fUST/lending_fUST_20250611
["ID","MTS","AMOUNT","RATE_DAILY","PERIOD"]
[365345877,1749612633690,-500.0,0.00021094,2]
[365345878,1749612633700,-500.0,0.00021094,2]
[365345879,1749612633710,-500.0,0.00021094,2]
[365345880,1749612633720,-500.0,0.00021094,2]
[365345881,1749612633730,-500.0,0.00021094,2]
[365345882,1749612633740,-240.0,0.00021094,2]
[365345883,1749612633751,-500.0,0.00021094,2]
[365345884,1749612633760,-500.0,0.00021094,2]
[365345885,1749612633770,-500.0,0.00021094,2]
[365345886,1749612633780,-500.0,0.00021094,2]
[365345887,1749612633789,-500.0,0.00021094,2]
[365345888,1749612633799,-500.0,0.00021094,2]
[365345889,1749612633809,-500.0,0.00021094,2]
[365345890,1749612633819,-500.0,0.00021094,2]
[365345891,1749612633829,-500.0,0.00021094,2]
[365345892,1749612633839,-500.0,0.00021094,2]
[365345893,1749612633848,-500.0,0.00021094,2]
[365345894,1749612633859,-500.0,0.00021094,2]
[365345895,1749612633869,-460.0,0.00021095,4]
[365345896,1749612633878,-460.0,0.00021095,4]
[365345897,1749612633888,-455.08124486,0.00021095,4]
[365345898,1749612633898,-430.0,0.00021095,4]
[365345899,1749612633908,-437.42190687,0.00021095,4]
[365345900,1749612633918,-401.52839032,0.00021095,4]
[365345901,1749612633928,-440.0,0.00021095,4]
[365345902,1749612633938,-440.0,0.00021095,4]
[365345903,1749612633948,-440.0,0.00021095,4]
[365345904,1749612633958,-436.70426987,0.00021095,4]
[365345905,1749612633967,-440.0,0.00021095,4]
[365345906,1749612633977,-440.0,0.00021095,4]
[365345907,1749612633989,-298.01024769,0.00021095,4]
[365345908,1749612633998,-405.76846984,0.00021095,4]
[365345909,1749612634008,-460.0,0.00021095,4]
[365345910,1749612634018,-440.0,0.00021095,4]
[365345911,1749612634027,-165.50616548,0.00021095,4]
[365345912,1749612634038,-434.26134436,0.00021095,4]
[365345913,1749612634048,-440.0,0.00021095,4]
[365345914,1749612634058,-440.0,0.00021095,4]
[365345915,1749612634067,-303.65380597,0.00021095,4]
[365345916,1749612634077,-343.97313591,0.00021095,4]
[365345917,1749612634087,-449.00145525,0.00021095,4]
[365345918,1749612634097,-440.0,0.00021095,4]
[365345919,1749612634106,-441.0611337,0.00021095,4]
[365345920,1749612634116,-435.83941792,0.00021095,4]
[365345921,1749612634126,-440.0,0.00021095,4]
[365345922,1749612634136,-436.00838907,0.00021095,4]
[365345923,1749612634145,-440.0,0.00021095,4]
[365345924,1749612634154,-440.0,0.00021095,4]
[365345925,1749612634164,-440.0,0.00021095,4]
[365345926,1749612634173,-440.0,0.00021095,4]
[365345927,1749612634183,-448.22430061,0.00021095,4]
[365345928,1749612634192,-420.67305538,0.00021095,4]
[365345929,1749612634201,-440.0,0.00021095,4]
[365345930,1749612634211,-460.0,0.00021095,4]
[365345931,1749612634221,-440.0,0.00021095,4]
[365345932,1749612634231,-460.0,0.00021095,4]
[365345933,1749612634241,-460.0,0.00021095,4]
[365345934,1749612634250,-442.37734844,0.00021095,4]
[365345935,1749612634263,-460.0,0.00021095,4]
[365345936,1749612634272,-443.53512227,0.00021095,4]
[365345937,1749612634282,-460.0,0.00021095,4]
[365345938,1749612634292,-430.0,0.00021095,4]
[365345939,1749612634303,-460.0,0.00021095,4]
[365345940,1749612634313,-500.0,0.00021095,4]
[365345941,1749612634323,-646.99922161,0.00021095,4]
[365345942,1749612634335,-452.99312155,0.00021095,4]
[365345943,1749612634345,-439.85206195,0.00021095,4]
[365345944,1749612634354,-445.62114431,0.00021095,4]
[365345945,1749612634365,-432.46459542,0.00021095,4]
[365345946,1749612634374,-402.88254106,0.00021095,4]
[365345947,1749612634384,-460.0,0.00021095,4]
[365345948,1749612634394,-414.59277462,0.00021095,4]
[365345949,1749612634404,-460.0,0.00021095,4]
[365345950,1749612634414,-460.0,0.00021095,4]
[365345951,1749612634423,-460.0,0.00021095,4]
[365345952,1749612634433,-460.0,0.00021095,4]
[365345953,1749612634443,-450.25460389,0.00021095,4]
[365345954,1749612634453,-444.81133266,0.00021095,4]
[365345955,1749612634463,-460.0,0.00021095,4]
[365345956,1749612634472,-441.24251154,0.00021095,4]
[365345957,1749612634481,-460.0,0.00021095,4]
[365345958,1749612634491,-433.02748644,0.00021095,4]
[365345959,1749612634501,-460.0,0.00021095,4]
[365345960,1749612634511,-460.0,0.00021095,4]
[365345961,1749612634524,-460.0,0.00021095,4]
[365345962,1749612634535,-431.75143913,0.00021095,4]
[365345963,1749612634545,-433.95488339,0.00021095,4]
[365345964,1749612634554,-460.0,0.00021095,4]
[365345965,1749612634564,-434.31134257,0.00021095,4]
[365345966,1749612634573,-435.19000627,0.00021095,4]
[365345967,1749612634583,-460.0,0.00021095,4]
[365345968,1749612634592,-436.30141164,0.00021095,4]
[365345969,1749612634602,-440.66331839,0.00021095,4]
[365345970,1749612634611,-460.0,0.00021095,4]
[365345971,1749612634621,-430.0,0.00021095,4]
[365345972,1749612634630,-430.0,0.00021095,4]
[365345973,1749612634640,-439.20179328,0.00021095,4]
[365345974,1749612634649,-430.0,0.00021095,4]
[365345975,1749612634659,-394.18284731,0.00021095,4]
[365345976,1749612634669,-406.42710809,0.00021095,4]
[365345977,1749612634679,-437.69946063,0.00021095,4]
[365345978,1749612634688,-460.0,0.00021095,4]
[365345979,1749612634698,-460.0,0.00021095,4]
[365345980,1749612634708,-445.49434132,0.00021095,4]
[365345981,1749612634717,-491.10727752,0.00021095,4]
[365345982,1749612634727,-460.0,0.00021095,4]
[365345983,1749612634736,-460.0,0.00021095,4]
[365345984,1749612634746,-460.0,0.00021095,4]
[365345985,1749612634756,-460.0,0.00021095,4]
[365345986,1749612634766,-432.1869498,0.00021095,4]
[365345987,1749612634775,-430.0,0.00021095,4]
[365345988,1749612634785,-510.92187301,0.00021095,4]
[365345989,1749612634795,-364.91994067,0.00021095,4]
[365345990,1749612634805,-460.0,0.00021095,4]
[365345991,1749612634814,-460.0,0.00021095,4]
[365345992,1749612634824,-430.0,0.00021095,4]
[365345993,1749612634833,-410.00519414,0.00021095,4]
[365345994,1749612634843,-460.0,0.00021095,4]
[365345995,1749612634852,-460.0,0.00021095,4]
[365345996,1749612634862,-430.0,0.00021095,4]
[365345997,1749612634871,-460.0,0.00021095,4]
[365345998,1749612634882,-460.0,0.00021095,4]
[365345999,1749612634891,-439.70876689,0.00021095,4]
[365346000,1749612634901,-403.57702739,0.00021095,4]
[365346001,1749612634911,-460.0,0.00021095,4]
[365346002,1749612634920,-460.0,0.00021095,4]
[365346003,1749612634930,-163.61679802,0.00021095,4]
[365346004,1749612634939,-460.0,0.00021095,4]
[365346005,1749612634949,-460.0,0.00021095,4]
[365346006,1749612634959,-385.22845231,0.00021095,4]
[365346007,1749612634971,-442.75601825,0.00021095,4]
[365346008,1749612634980,-460.0,0.00021095,4]
[365346009,1749612634989,-460.0,0.00021095,4]
[365346010,1749612634999,-430.0,0.00021095,4]
[365346011,1749612635009,-460.0,0.00021095,4]
[365346012,1749612635018,-459.87463438,0.00021095,4]
[365346013,1749612635028,-444.86746198,0.00021095,4]
[365346014,1749612635037,-280.42275014,0.00021095,4]
[365346015,1749612635046,-442.79935901,0.00021095,4]
[365346016,1749612635055,-351.6245047,0.00021095,4]
[365346017,1749612635065,-460.0,0.00021095,4]
[365346018,1749612635074,-409.36848417,0.00021095,4]
[365346019,1749612635083,-494.77468898,0.00021095,4]
[365346020,1749612635092,-460.0,0.00021095,4]
[365346021,1749612635102,-460.0,0.00021095,4]
[365346022,1749612635111,-555.3796375,0.00021095,4]
[365346023,1749612635120,-222.81001161,0.00021095,4]
[365346024,1749612635130,-434.16130122,0.00021095,4]
[365346025,1749612635139,-435.83596857,0.00021095,4]
[365346026,1749612635148,-434.49119712,0.00021095,4]
[365346027,1749612635158,-430.0,0.00021095,4]
[365346028,1749612635167,-505.59785271,0.00021095,4]
[365346029,1749612635293,-436.01706513,0.00021095,4]
[365346030,1749612635304,-460.0,0.00021095,4]
[365346031,1749612635314,-460.0,0.00021095,4]
[365346032,1749612635323,-460.0,0.00021095,4]
[365346033,1749612635333,-435.59404783,0.00021095,4]
[365346034,1749612635343,-454.6060175,0.00021095,4]
[365346035,1749612635353,-460.0,0.00021095,4]
[365346036,1749612635362,-433.98790852,0.00021095,4]
[365346037,1749612635372,-435.73432771,0.00021095,4]
[365346038,1749612635383,-460.0,0.00021095,4]
[365346039,1749612635392,-460.0,0.00021095,4]
[365346040,1749612635402,-460.0,0.00021095,4]
[365346041,1749612635411,-460.0,0.00021095,4]
[365346042,1749612635420,-435.25960555,0.00021095,4]
[365346043,1749612635430,-404.12769542,0.00021095,4]
[365346044,1749612635441,-408.24847266,0.00021095,4]
[365346045,1749612635450,-460.0,0.00021095,4]
[365346046,1749612635460,-437.51342781,0.00021095,4]
[365346047,1749612635470,-406.81902848,0.00021095,4]
[365346048,1749612635479,-460.0,0.00021095,4]
[365346049,1749612635489,-437.31668921,0.00021095,4]
[365346050,1749612635499,-460.0,0.00021095,4]
[365346051,1749612635508,-430.0,0.00021095,4]
[365346052,1749612635517,-460.0,0.00021095,4]
[365346053,1749612635526,-430.0,0.00021095,4]
[365346054,1749612635535,-508.03,0.00021095,4]
[365346055,1749612635544,-430.0,0.00021095,4]
[365346056,1749612635555,-460.0,0.00021095,4]
[365346057,1749612635564,-460.0,0.00021095,4]
[365346058,1749612635575,-460.0,0.00021095,4]
[365346059,1749612635584,-460.0,0.00021095,4]
[365346060,1749612635593,-364.46263982,0.00021095,4]
[365346061,1749612635602,-430.0,0.00021095,4]
[365346062,1749612635611,-460.0,0.00021095,4]
[365346063,1749612635620,-460.0,0.00021095,4]
[365346064,1749612635629,-1331.8,0.00021095,4]
[365346065,1749612635638,-430.0,0.00021095,4]
[365346066,1749612635647,-442.21390464,0.00021095,4]
[365346067,1749612635657,-460.0,0.00021095,4]
[365346068,1749612635666,-458.14194517,0.00021095,4]
[365346069,1749612635678,-450.06732633,0.00021095,4]
[365346070,1749612635689,-500.0,0.00021095,4]
[365346071,1749612635699,-500.0,0.00021095,4]
[365346072,1749612635708,-500.0,0.00021095,4]
[365346073,1749612635717,-460.0,0.00021095,4]
[365346074,1749612635726,-460.0,0.00021095,4]
[365346075,1749612635735,-460.0,0.00021095,4]
[365346076,1749612635744,-445.07899095,0.00021095,4]
[365346077,1749612635754,-460.0,0.00021095,4]
[365346078,1749612635762,-460.0,0.00021095,4]
[365346079,1749612635772,-446.64768734,0.00021095,4]
[365346080,1749612635781,-476.15,0.00021095,4]
[365346081,1749612635790,-476.86,0.00021095,4]
[365346082,1749612635800,-457.6146027,0.00021095,4]
[365346083,1749612635809,-460.0,0.00021095,4]
[365346084,1749612635819,-460.0,0.00021095,4]
[365346085,1749612635828,-934.37,0.00021095,4]
[365346086,1749612635836,-405.11064085,0.00021095,4]
[365346087,1749612635845,-437.18891141,0.00021095,4]
[365346088,1749612635854,-430.0,0.00021095,4]
[365346089,1749612635864,-460.0,0.00021095,4]
[365346090,1749612635873,-460.0,0.00021095,4]
[365346091,1749612635881,-460.0,0.00021095,4]
[365346092,1749612635890,-460.0,0.00021095,4]
[365346093,1749612635899,-435.38845963,0.00021095,4]
[365346094,1749612635909,-460.0,0.00021095,4]
[365346095,1749612635918,-460.0,0.00021095,4]
[365346096,1749612635927,-460.0,0.00021095,4]
[365346097,1749612635936,-460.0,0.00021095,4]
[365346098,1749612635945,-436.58043396,0.00021095,4]
[365346099,1749612635956,-2712.36,0.00021095,4]
[365346100,1749612635965,-460.0,0.00021095,4]
[365346101,1749612635975,-471.7287334,0.00021095,4]
[365346102,1749612635986,-430.0,0.00021095,4]
[365346103,1749612635995,-460.0,0.00021095,4]
[365346104,1749612636004,-460.0,0.00021095,4]
[365346105,1749612636014,-430.0,0.00021095,4]
[365346106,1749612636023,-460.0,0.00021095,4]
[365346107,1749612636032,-460.0,0.00021095,4]
[365346108,1749612636041,-460.0,0.00021095,4]
[365346109,1749612636050,-470.4229603,0.00021095,4]
[365346110,1749612636060,-460.0,0.00021095,4]
[365346111,1749612636069,-1035.03,0.00021095,4]
[365346112,1749612636078,-507.36390852,0.00021095,4]
[365346113,1749612636087,-435.2017957,0.00021095,4]
[365346114,1749612636096,-442.35215341,0.00021095,4]
[365346115,1749612636106,-460.0,0.00021095,4]
[365346116,1749612636115,-460.0,0.00021095,4]
[365346117,1749612636124,-439.06624987,0.00021095,4]
[365346118,1749612636134,-460.0,0.00021095,4]
[365346119,1749612636143,-460.0,0.00021095,4]
[365346120,1749612636152,-482.3021733,0.00021095,4]
[365346121,1749612636162,-460.0,0.00021095,4]
[365346122,1749612636171,-435.38247024,0.00021095,4]
[365346123,1749612636180,-432.97726061,0.00021095,4]
[365346124,1749612636189,-1330.19,0.00021095,4]
[365346125,1749612636199,-442.19939293,0.00021095,4]
[365346126,1749612636208,-460.0,0.00021095,4]
[365346127,1749612636217,-460.0,0.00021095,4]
[365346128,1749612636227,-436.84326752,0.00021095,4]
[365346129,1749612636236,-441.90002606,0.00021095,4]
[365346130,1749612636245,-269.63217454,0.00021095,4]
[365346131,1749612636254,-178.52645475,0.00021095,4]
[365346132,1749612636268,-444.35331728,0.00021095,4]
[365346133,1749612636277,-701.44,0.00021095,4]
[365346134,1749612636287,-460.0,0.00021095,4]
[365346135,1749612636296,-1250.8,0.00021095,4]
[365346136,1749612636306,-434.27014043,0.00021095,4]
[365346137,1749612636316,-430.0,0.00021095,4]
[365346138,1749612636325,-436.99595011,0.00021095,4]
[365346139,1749612636336,-197.05092487,0.00021095,4]
[365346140,1749612636347,-460.0,0.00021095,2]
[365346141,1749612636356,-460.0,0.00021095,4]
[365346142,1749612636366,-1461.41,0.00021095,4]
[365346143,1749612636376,-460.0,0.00021095,4]
[365346144,1749612636385,-727.31,0.00021095,4]
[365346145,1749612636395,-439.09044881,0.00021095,4]
[365346146,1749612636404,-460.0,0.00021095,4]
[365346147,1749612636413,-460.0,0.00021095,4]
[365346148,1749612636424,-444.87471601,0.00021095,4]
[365346149,1749612636434,-2207.98,0.00021095,4]
[365346150,1749612636443,-3133.44,0.00021095,4]
[365346151,1749612636452,-460.0,0.00021095,4]
[365346152,1749612636461,-460.0,0.00021095,4]
[365346153,1749612636470,-460.0,0.00021095,4]
[365346154,1749612636479,-442.068575,0.00021095,4]
[365346155,1749612636489,-460.0,0.00021095,4]
[365346156,1749612636499,-460.0,0.00021095,4]
[365346157,1749612636508,-460.0,0.00021095,4]
[365346158,1749612636518,-1903.72,0.00021095,4]
[365346159,1749612636527,-448.33278878,0.00021095,4]
[365346160,1749612636537,-400.0,0.00021095,4]
[365346161,1749612636547,-460.0,0.00021095,4]
[365346162,1749612636556,-460.0,0.00021095,4]
[365346163,1749612636566,-805.1,0.00021095,4]
[365346164,1749612636581,-436.41906863,0.00021095,4]
[365346165,1749612636597,-658.74,0.00021095,4]
[365346166,1749612636606,-2749.63,0.00021095,4]
[365346167,1749612636616,-2659.13,0.00021095,4]
[365346168,1749612636625,-481.54270995,0.00021095,4]
[365346169,1749612636634,-460.0,0.00021095,4]
[365346170,1749612636643,-454.43103532,0.00021095,4]
[365346171,1749612636653,-434.1209752,0.00021095,4]
[365346172,1749612636667,-460.0,0.00021095,4]
[365346173,1749612636678,-415.05268958,0.00021095,4]
[365346174,1749612636688,-460.0,0.00021095,4]
[365346175,1749612636698,-435.41216637,0.00021095,4]
[365346176,1749612636708,-460.0,0.00021095,4]
[365346177,1749612636719,-435.90441497,0.00021095,4]
[365346178,1749612636729,-460.0,0.00021095,4]
[365346179,1749612636743,-471.95909268,0.00021095,4]
[365346180,1749612636752,-460.0,0.00021095,4]
[365346181,1749612636761,-887.21,0.00021095,4]
[365346182,1749612636770,-444.46229747,0.00021095,4]
[365346183,1749612636779,-460.0,0.00021095,4]
[365346184,1749612636789,-460.0,0.00021095,4]
[365346185,1749612636798,-1267.45,0.00021095,4]
[365346186,1749612636807,-444.48098988,0.00021095,4]
[365346187,1749612636817,-460.0,0.00021095,4]
[365346188,1749612636826,-460.0,0.00021095,4]
[365346189,1749612636835,-460.0,0.00021095,4]
[365346190,1749612636844,-257.07123392,0.00021095,4]
[365346191,1749612636853,-442.18625728,0.00021095,4]
[365346192,1749612636862,-430.0,0.00021095,4]
[365346193,1749612636872,-460.0,0.00021095,4]
[365346194,1749612636881,-461.69901408,0.00021095,4]
[365346195,1749612636890,-460.0,0.00021095,4]
[365346196,1749612636899,-1336.3,0.00021095,4]
[365346197,1749612636908,-460.0,0.00021095,4]
[365346198,1749612636917,-441.08860284,0.00021095,4]
[365346199,1749612636926,-460.0,0.00021095,4]
[365346200,1749612636935,-452.02727555,0.00021095,4]
[365346201,1749612636945,-260.51832066,0.00021095,4]
[365346202,1749612636955,-325.65579589,0.00021269,2]
[365346203,1749612636964,-421.97,0.00021358,3]
[365346204,1749612636973,-500.0,0.00021368,4]
[365346205,1749612636984,-170.49010612,0.00021368,4]
[365346206,1749612636993,-460.0,0.00021369,4]
[365346207,1749612637002,-460.0,0.00021369,4]
[365346208,1749612637011,-460.0,0.00021369,4]
[365346209,1749612637021,-420.0,0.00021369,4]
[365346210,1749612637029,-460.0,0.00021369,4]
[365346211,1749612637038,-420.0,0.00021369,4]
[365346212,1749612637047,-420.0,0.00021369,4]
[365346213,1749612637056,-420.0,0.00021369,4]
[365346214,1749612637065,-420.0,0.00021369,4]
[365346215,1749612637075,-420.0,0.00021369,4]
[365346216,1749612637085,-460.0,0.00021369,4]
[365346217,1749612637094,-420.0,0.00021369,4]
[365346218,1749612637104,-460.0,0.00021369,4]
[365346219,1749612637113,-188.34080003,0.00021369,4]
[365346220,1749612637123,-440.0,0.00021369,4]
[365346221,1749612637131,-460.0,0.00021369,4]
[365346222,1749612637141,-460.0,0.00021369,4]
[365346223,1749612637150,-460.0,0.00021369,4]
[365346224,1749612637159,-460.0,0.00021369,4]
[365346225,1749612637169,-405.23351735,0.00021369,4]
[365346226,1749612637178,-407.30378449,0.00021369,4]
[365346227,1749612637187,-460.0,0.00021369,4]
[365346228,1749612637196,-521.38219742,0.00021369,4]
[365346229,1749612637215,-460.0,0.00021369,4]
[365346230,1749612637225,-460.0,0.00021369,4]
[365346231,1749612637236,-400.0,0.00021369,4]
[365346232,1749612637246,-426.36150275,0.00021369,4]
[365346233,1749612637255,-410.43529529,0.00021369,4]
[365346234,1749612637269,-408.59589893,0.00021369,4]
[365346235,1749612637279,-460.0,0.00021369,4]
[365346236,1749612637289,-409.74864115,0.00021369,4]
[365346237,1749612637298,-460.0,0.00021369,4]
[365346238,1749612637308,-414.72207128,0.00021369,4]
[365346239,1749612637317,-460.0,0.00021369,4]
[365346240,1749612637326,-460.0,0.00021369,4]
[365346241,1749612637337,-460.0,0.00021369,4]
[365346242,1749612637347,-460.0,0.00021369,4]
[365346243,1749612637357,-460.0,0.00021369,4]
[365346244,1749612637366,-460.0,0.00021369,4]
[365346245,1749612637376,-460.0,0.00021369,4]
[365346246,1749612637386,-405.05844877,0.00021369,4]
[365346247,1749612637396,-151.0,0.00021369,4]
[365346248,1749612637405,-460.0,0.00021369,4]
[365346249,1749612637415,-460.0,0.00021369,4]
[365346250,1749612637424,-460.0,0.00021369,4]
[365346251,1749612637433,-433.31075544,0.00021369,4]
[365346252,1749612637443,-444.45587473,0.00021369,4]
[365346253,1749612637453,-407.96224011,0.00021369,4]
[365346254,1749612637462,-407.1338818,0.00021369,4]
[365346255,1749612637472,-414.08363013,0.00021369,4]
[365346256,1749612637481,-370.0,0.00021369,4]
[365346257,1749612637492,-460.0,0.00021369,4]
[365346258,1749612637502,-409.73304697,0.00021369,4]
[365346259,1749612637511,-461.74826938,0.00021369,4]
[365346260,1749612637521,-417.40985349,0.00021369,4]
[365346261,1749612637651,-557.15341155,0.00021369,4]
[365346262,1749612637660,-460.0,0.00021369,4]
[365346263,1749612637669,-508.03,0.00021369,4]
[365346264,1749612637679,-460.0,0.00021369,4]
[365346265,1749612637687,-460.0,0.00021369,4]
[365346266,1749612637697,-300.0,0.00021369,4]
[365346267,1749612637707,-460.0,0.00021369,4]
[365346268,1749612637716,-460.0,0.00021369,4]
[365346269,1749612637725,-460.0,0.00021369,4]
[365346270,1749612637736,-1331.8,0.00021369,4]
[365346271,1749612637745,-460.0,0.00021369,4]
[365346272,1749612637754,-400.0,0.00021369,4]
[365346274,1749612637763,-460.0,0.00021369,4]
[365346276,1749612637773,-460.0,0.00021369,4]
[365346278,1749612637782,-460.0,0.00021369,4]
[365346279,1749612637791,-460.0,0.00021369,4]
[365346280,1749612637801,-476.15,0.00021369,4]
[365346281,1749612637810,-476.86,0.00021369,4]
[365346282,1749612637820,-460.0,0.00021369,4]
[365346284,1749612637830,-460.0,0.00021369,4]
[365346285,1749612637839,-934.37,0.00021369,4]
[365346287,1749612637849,-449.38124061,0.00021369,4]
[365346289,1749612637858,-397.51579736,0.00021369,4]
[365346291,1749612637867,-460.0,0.00021369,4]
[365346293,1749612637876,-460.0,0.00021369,4]
[365346295,1749612637885,-460.0,0.00021369,4]
[365346297,1749612637894,-460.0,0.00021369,4]
[365346299,1749612637903,-349.39189322,0.00021369,4]
[365346301,1749612637912,-460.0,0.00021369,4]
[365346303,1749612637922,-2712.36,0.00021369,4]
[365346305,1749612637932,-460.0,0.00021369,4]
[365346307,1749612637941,-460.0,0.00021369,4]
[365346309,1749612637951,-410.98088637,0.00021369,4]
[365346311,1749612637960,-460.0,0.00021369,4]
[365346313,1749612637969,-460.0,0.00021369,4]
[365346316,1749612637979,-460.0,0.00021369,4]
[365346317,1749612637990,-155.21628429,0.00021369,4]
[365346319,1749612637999,-460.0,0.00021369,4]
[365346321,1749612638009,-1035.03,0.00021369,4]
[365346324,1749612638018,-460.0,0.00021369,4]
[365346325,1749612638027,-460.0,0.00021369,4]
[365346327,1749612638037,-589.94204487,0.00021369,4]
[365346330,1749612638047,-460.0,0.00021369,4]
[365346331,1749612638055,-400.0,0.00021369,4]
[365346334,1749612638065,-1330.19,0.00021369,4]
[365346336,1749612638074,-400.0,0.00021369,4]
[365346337,1749612638083,-423.9973696,0.00021369,4]
[365346339,1749612638093,-701.44,0.00021369,4]
[365346342,1749612638102,-460.0,0.00021369,4]
[365346344,1749612638112,-1250.8,0.00021369,4]
[365346345,1749612638121,-460.0,0.00021369,2]
[365346347,1749612638131,-460.0,0.00021369,4]
[365346349,1749612638140,-1461.41,0.00021369,4]
[365346351,1749612638149,-450.59798681,0.00021369,4]
[365346353,1749612638158,-727.31,0.00021369,4]
[365346355,1749612638168,-460.0,0.00021369,4]
[365346357,1749612638177,-460.0,0.00021369,4]
[365346359,1749612638187,-2207.98,0.00021369,4]
[365346361,1749612638196,-3133.44,0.00021369,4]
[365346363,1749612638205,-460.0,0.00021369,4]
[365346365,1749612638215,-211.33763921,0.00021369,4]
[365346367,1749612638224,-460.0,0.00021369,4]
[365346369,1749612638234,-460.0,0.00021369,4]
[365346371,1749612638243,-400.0,0.00021369,4]
[365346373,1749612638252,-460.0,0.00021369,4]
[365346375,1749612638262,-1903.72,0.00021369,4]
[365346376,1749612638272,-460.0,0.00021369,4]
[365346379,1749612638284,-400.0,0.00021369,4]
[365346381,1749612638294,-805.1,0.00021369,4]
[365346383,1749612638304,-658.74,0.00021369,4]
[365346385,1749612638314,-2749.63,0.00021369,4]
[365346387,1749612638323,-2659.13,0.00021369,4]
[365346389,1749612638332,-460.0,0.00021369,4]
[365346391,1749612638343,-383.95841385,0.00021369,4]
[365346393,1749612638353,-460.0,0.00021369,4]
[365346395,1749612638362,-400.0,0.00021369,4]
[365346397,1749612638372,-416.32854179,0.00021369,4]
[365346399,1749612638381,-887.21,0.00021369,4]
[365346401,1749612638391,-460.0,0.00021369,4]
[365346403,1749612638400,-460.0,0.00021369,4]
[365346405,1749612638409,-460.0,0.00021369,4]
[365346407,1749612638418,-1267.45,0.00021369,4]
[365346409,1749612638428,-422.87713543,0.00021369,4]
[365346411,1749612638437,-460.0,0.00021369,4]
[365346414,1749612638446,-460.0,0.00021369,4]
[365346416,1749612638456,-414.54376322,0.00021369,4]
[365346418,1749612638464,-460.0,0.00021369,4]
[365346420,1749612638474,-1336.3,0.00021369,4]
[365346421,1749612638484,-460.0,0.00021369,4]
[365346423,1749612638494,-460.0,0.00021369,4]
[365346425,1749612638503,-151.0,0.00021396,4]
[365346426,1749612638513,-235.54694619,0.00021424,4]
[365346428,1749612638522,-1033.7169149,0.00021621,2]
[365346430,1749612638532,-1003.44335296,0.00021621,2]
[365346432,1749612638542,-460.0,0.00021643,4]
[365346435,1749612638551,-423.28597389,0.00021643,4]
[365346437,1749612638560,-460.0,0.00021643,4]
[365346439,1749612638570,-460.0,0.00021643,4]
[365346441,1749612638580,-249.17,0.00021643,4]
[365346442,1749612638589,-370.0,0.00021643,4]
[365346444,1749612638598,-460.0,0.00021643,4]
[365346446,1749612638607,-356.86308249,0.00021643,4]
[365346448,1749612638617,-400.0,0.00021643,4]
[365346450,1749612638626,-370.0,0.00021643,4]
[365346452,1749612638635,-368.49409667,0.00021643,4]
[365346454,1749612638645,-460.0,0.00021643,4]
[365346456,1749612638654,-460.0,0.00021643,4]
[365346458,1749612638665,-460.0,0.00021643,4]
[365346460,1749612638673,-460.0,0.00021643,4]
[365346462,1749612638688,-460.0,0.00021643,4]
[365346463,1749612638710,-460.0,0.00021643,4]
[365346464,1749612638726,-460.0,0.00021643,4]
[365346465,1749612638747,-249.51514406,0.00021643,4]
[365346466,1749612638764,-460.0,0.00021643,4]
[365346467,1749612638773,-370.0,0.00021643,4]
[365346468,1749612638783,-395.53504815,0.00021643,4]